fUSD/lending_fUSD_20250226
["ID","MTS","AMOUNT","RATE_DAILY","PERIOD"]
[354654776,1740603099362,-500.0,0.00040273,14]
[354654777,1740603099372,-500.0,0.00040273,14]
[354654778,1740603099381,-500.0,0.00040273,14]
[354654779,1740603099391,-200.97080391,0.00040273,14]
[354654780,1740603099401,-500.0,0.00040273,14]
[354654781,1740603099411,-359.0150253,0.00040273,14]
[354654782,1740603099422,-500.0,0.00040273,14]
[354654783,1740603099435,-513.2,0.00040273,14]
[354654784,1740603099446,-275.78680961,0.00040273,14]
[354654785,1740603099455,-500.0,0.00040273,14]
[354654786,1740603099467,-500.0,0.00040273,14]
[354654787,1740603099476,-566.22,0.00040273,14]
[354654788,1740603099487,-549.81,0.00040273,14]
[354654789,1740603099498,-500.0,0.00040273,14]
[354654790,1740603099508,-500.0,0.00040273,14]
[354654791,1740603099518,-500.0,0.00040273,14]
[354654792,1740603099527,-500.0,0.00040273,14]
[354654793,1740603099537,-550.27,0.00040273,14]
[354654794,1740603099546,-500.0,0.00040273,14]
[354654795,1740603099555,-500.0,0.00040273,14]
[354654796,1740603099565,-722.94,0.00040273,14]
[354654797,1740603099574,-500.0,0.00040273,14]
[354654798,1740603099584,-500.0,0.00040273,14]
[354654799,1740603099594,-524.63,0.00040273,14]
[354654800,1740603099603,-1283.41,0.00040273,14]
[354654801,1740603099614,-500.0,0.00040273,14]
[354654802,1740603099623,-500.0,0.00040273,14]
[354654803,1740603099633,-343.04431392,0.00040273,14]
[354654804,1740603099643,-540.17953339,0.00040273,14]
[354654805,1740603099653,-500.0,0.00040273,14]
[354654806,1740603099665,-500.0,0.00040273,14]
[354654807,1740603099674,-500.0,0.00040273,14]
[354654808,1740603099814,-514.42008082,0.00040273,14]
[354654809,1740603099826,-191.02,0.00040273,14]
[354654810,1740603099836,-500.0,0.00040273,14]
[354654811,1740603099846,-500.0,0.00040273,14]
[354654812,1740603099857,-500.0,0.00040273,14]
[354654813,1740603099866,-500.0,0.00040273,14]
[354654814,1740603099875,-500.0,0.00040273,14]
[354654815,1740603099884,-618.04504243,0.00040273,14]
[354654816,1740603099894,-500.0,0.00040273,14]
[354654817,1740603099904,-508.51,0.00040273,14]
[354654818,1740603099914,-1374.31,0.00040273,14]
[354654819,1740603099923,-624.68,0.00040273,14]
[354654820,1740603099933,-532.45,0.00040273,14]
[354654821,1740603099942,-500.0,0.00040273,14]
[354654822,1740603099952,-591.82,0.00040273,14]
[354654823,1740603099961,-602.86,0.00040273,14]
[354654824,1740603099970,-500.0,0.00040273,14]
[354654825,1740603099979,-500.0,0.00040273,14]
[354654826,1740603099988,-500.0,0.00040273,14]
[354654827,1740603099997,-500.0,0.00040273,14]
[354654828,1740603100008,-636.16,0.00040273,14]
[354654829,1740603100017,-500.0,0.00040273,14]
[354654830,1740603100027,-500.0,0.00040273,14]
[354654831,1740603100037,-500.0,0.00040273,14]
[354654832,1740603100047,-500.0,0.00040273,14]
[354654833,1740603100058,-500.0,0.00040273,14]
[354654834,1740603100067,-500.0,0.00040273,14]
[354654835,1740603100076,-1491.9,0.00040273,14]
[354654836,1740603100085,-500.0,0.00040273,14]
[354654837,1740603100096,-530.83,0.00040273,14]
[354654838,1740603100105,-500.0,0.00040273,14]
[354654839,1740603100114,-500.0,0.00040273,14]
[354654840,1740603100123,-500.0,0.00040273,14]
[354654841,1740603100132,-500.0,0.00040273,14]
[354654842,1740603100142,-586.16,0.00040273,14]
[354654843,1740603100152,-500.0,0.00040273,14]
[354654844,1740603100161,-500.0,0.00040273,14]
[354654845,1740603100171,-710.17,0.00040273,14]
[354654846,1740603100180,-541.21,0.00040273,14]
[354654847,1740603100190,-500.0,0.00040273,14]
[354654848,1740603100199,-526.23,0.00040273,14]
[354654849,1740603100208,-525.64,0.00040273,14]
[354654850,1740603100217,-500.0,0.00040273,14]
[354654851,1740603100227,-500.0,0.00040273,14]
[354654852,1740603100236,-500.0,0.00040273,14]
[354654853,1740603100245,-500.0,0.00040273,14]
[354654854,1740603100254,-517.37,0.00040273,14]
[354654855,1740603100263,-500.0,0.00040273,14]
[354654856,1740603100272,-619.2,0.00040273,14]
[354654857,1740603100282,-581.73,0.00040273,14]
[354654858,1740603100291,-517.68,0.00040273,14]
[354654859,1740603100300,-500.0,0.00040273,14]
[354654860,1740603100309,-500.0,0.00040273,14]
[354654861,1740603100319,-500.0,0.00040273,14]
[354654862,1740603100328,-663.55,0.00040273,14]
[354654863,1740603100337,-500.0,0.00040273,14]
[354654864,1740603100346,-500.0,0.00040273,14]
[354654865,1740603100355,-596.65,0.00040273,14]
[354654866,1740603100365,-432.30347717,0.00040273,14]
[354654867,1740603100374,-500.0,0.00040273,14]
[354654868,1740603100383,-2255.4,0.00040273,2]
[354654869,1740603100392,-521.67,0.00040273,14]
[354654870,1740603100401,-500.0,0.00040273,14]
[354654871,1740603100411,-500.0,0.00040273,14]
[354654872,1740603100420,-703.37711792,0.00040301,120]
[354654873,1740603100430,-200.0,0.00040303,120]
[354654874,1740603100439,-703.37711792,0.00040321,120]
[354654875,1740603100453,-514.19291335,0.00040322,120]
[354654876,1740603100462,-18694.97958288,0.00040324,120]
[354654877,1740603100471,-18694.97958288,0.00040325,120]
[354654878,1740603100481,-500.0,0.0004035,120]
[354654879,1740603100491,-150.0,0.00040375,2]
[354654880,1740603100501,-200.0,0.00040392,120]
[354654881,1740603100511,-200.0,0.00040398,120]
[354654882,1740603100522,-300.0,0.000404,2]
[354654883,1740603100532,-500.0,0.00040547,14]
[354654884,1740603100542,-500.0,0.00040547,14]
[354654885,1740603100551,-352.76308394,0.00040547,14]
[354654886,1740603100561,-546.28,0.00040547,14]
[354654887,1740603100571,-500.0,0.00040547,14]
[354654888,1740603100581,-500.0,0.00040547,14]
[354654889,1740603100590,-500.0,0.00040547,14]
[354654890,1740603100600,-500.0,0.00040547,14]
[354654891,1740603100609,-500.0,0.00040547,14]
[354654892,1740603100619,-500.0,0.00040547,14]
[354654893,1740603100629,-500.0,0.00040547,14]
[354654894,1740603100638,-500.0,0.00040547,14]
[354654895,1740603100648,-500.0,0.00040547,14]
[354654896,1740603100660,-626.99,0.00040547,14]
[354654897,1740603100670,-513.2,0.00040547,14]
[354654898,1740603100680,-500.0,0.00040547,14]
[354654899,1740603100689,-500.0,0.00040547,14]
[354654900,1740603100699,-566.22,0.00040547,14]
[354654901,1740603100709,-549.81,0.00040547,14]
[354654902,1740603100718,-500.0,0.00040547,14]
[354654903,1740603100728,-500.0,0.00040547,14]
[354654904,1740603100738,-500.0,0.00040547,14]
[354654905,1740603100748,-478.25093231,0.00040547,14]
[354654906,1740603100758,-550.27,0.00040547,14]
[354654907,1740603100768,-500.0,0.00040547,14]
[354654908,1740603100778,-500.0,0.00040547,14]
[354654909,1740603100787,-722.94,0.00040547,14]
[354654910,1740603100797,-500.0,0.00040547,14]
[354654911,1740603100807,-500.0,0.00040547,14]
[354654912,1740603100817,-524.63,0.00040547,14]
[354654913,1740603100826,-1283.41,0.00040547,14]
[354654914,1740603100836,-500.0,0.00040547,14]
[354654915,1740603100845,-500.0,0.00040547,14]
[354654916,1740603100854,-500.0,0.00040547,14]
[354654917,1740603100864,-500.0,0.00040547,14]
[354654918,1740603100874,-500.0,0.00040547,14]
[354654919,1740603100883,-500.0,0.00040547,14]
[354654920,1740603100892,-500.0,0.00040547,14]
[354654921,1740603100904,-500.0,0.00040547,14]
[354654922,1740603100913,-500.0,0.00040547,14]
[354654923,1740603100922,-307.55381542,0.00040547,14]
[354654924,1740603100931,-500.0,0.00040547,14]
[354654925,1740603100940,-508.51,0.00040547,14]
[354654926,1740603100950,-1374.31,0.00040547,14]
[354654927,1740603100959,-624.68,0.00040547,14]
[354654928,1740603100968,-532.45,0.00040547,14]
[354654929,1740603100977,-500.0,0.00040547,14]
[354654930,1740603100986,-591.82,0.00040547,14]
[354654931,1740603100995,-602.86,0.00040547,14]
[354654932,1740603101003,-500.0,0.00040547,14]
[354654933,1740603101014,-500.0,0.00040547,14]
[354654934,1740603101024,-500.0,0.00040547,14]
[354654935,1740603101033,-500.0,0.00040547,14]
[354654936,1740603101043,-636.16,0.00040547,14]
[354654937,1740603101054,-500.0,0.00040547,14]
[354654938,1740603101063,-500.0,0.00040547,14]
[354654939,1740603101072,-500.0,0.00040547,14]
[354654940,1740603101081,-500.0,0.00040547,14]
[354654941,1740603101090,-500.0,0.00040547,14]
[354654942,1740603101099,-500.0,0.00040547,14]
[354654943,1740603101108,-1491.9,0.00040547,14]
[354654944,1740603101117,-500.0,0.00040547,14]
[354654945,1740603101126,-530.83,0.00040547,14]
[354654946,1740603101135,-500.0,0.00040547,14]
[354654947,1740603101144,-500.0,0.00040547,14]
[354654948,1740603101155,-500.0,0.00040547,14]
[354654949,1740603101164,-500.0,0.00040547,14]
[354654950,1740603101173,-586.16,0.00040547,14]
[354654951,1740603101182,-500.0,0.00040547,14]
[354654952,1740603101192,-500.0,0.00040547,14]
[354654953,1740603101201,-710.17,0.00040547,14]
[354654954,1740603101210,-541.21,0.00040547,14]
[354654955,1740603101219,-526.23,0.00040547,14]
[354654956,1740603101228,-500.0,0.00040547,14]
[354654957,1740603101237,-525.64,0.00040547,14]
[354654958,1740603101247,-500.0,0.00040547,14]
[354654959,1740603101256,-500.0,0.00040547,14]
[354654960,1740603101265,-286.61,0.00040547,14]
[354654961,1740603101274,-500.0,0.00040547,14]
[354654962,1740603101283,-517.37,0.00040547,14]
[354654963,1740603101292,-500.0,0.00040547,14]
[354654964,1740603101301,-619.2,0.00040547,14]
[354654965,1740603101312,-581.73,0.00040547,14]
[354654966,1740603101324,-517.68,0.00040547,14]
[354654967,1740603101333,-500.0,0.00040547,14]
[354654968,1740603101342,-500.0,0.00040547,14]
[354654969,1740603101351,-500.0,0.00040547,14]
[354654970,1740603101361,-663.55,0.00040547,14]
[354654971,1740603101370,-500.0,0.00040547,14]
[354654972,1740603101379,-500.0,0.00040547,14]
[354654973,1740603101389,-596.65,0.00040547,14]
[354654974,1740603101399,-500.0,0.00040547,14]
[354654975,1740603101410,-2255.4,0.00040547,2]
[354654976,1740603101419,-521.67,0.00040547,14]
[354654977,1740603101427,-500.0,0.00040547,14]
[354654978,1740603101440,-500.0,0.00040547,14]
[354654979,1740603101450,-200.0,0.00040647,2]
[354654980,1740603101460,-300.0,0.000408,2]
[354654981,1740603101470,-399.22926405,0.00040821,14]
[354654982,1740603101481,-500.0,0.00040821,14]
[354654983,1740603101492,-546.28,0.00040821,14]
[354654984,1740603101502,-500.0,0.00040821,14]
[354654985,1740603101514,-500.0,0.00040821,14]
[354654986,1740603101525,-500.0,0.00040821,14]
[354654987,1740603101536,-500.0,0.00040821,14]
[354654988,1740603101546,-500.0,0.00040821,14]
[354654989,1740603101556,-500.0,0.00040821,14]
[354654990,1740603101565,-500.0,0.00040821,14]
[354654991,1740603101575,-500.0,0.00040821,14]
[354654992,1740603101585,-285.23,0.00040821,14]
[354654993,1740603101595,-2000.0,0.00040821,120]
[354654994,1740603101604,-151.0,0.00040821,14]
[354654995,1740603101614,-185.685182,0.00040821,14]
[354654996,1740603101623,-185.685182,0.00040821,14]
[354654997,1740603101633,-513.2,0.00040821,14]
[354654998,1740603101642,-500.0,0.00040821,14]
[354654999,1740603101652,-492.78503269,0.00040821,14]
[354655000,1740603101662,-566.22,0.00040821,14]
[354655001,1740603101672,-549.81,0.00040821,14]
[354655002,1740603101682,-500.0,0.00040821,14]
[354655003,1740603101692,-500.0,0.00040821,14]
[354655004,1740603101701,-162.97964614,0.00040821,14]
[354655005,1740603101711,-550.27,0.00040821,14]
[354655006,1740603101720,-500.0,0.00040821,14]
[354655007,1740603101730,-518.82643784,0.00040821,14]
[354655008,1740603101740,-722.94,0.00040821,14]
[354655009,1740603101749,-500.0,0.00040821,14]
[354655010,1740603101759,-500.0,0.00040821,14]
[354655011,1740603101769,-524.63,0.00040821,14]
[354655012,1740603101780,-1283.41,0.00040821,14]
[354655013,1740603101789,-500.0,0.00040821,14]
[354655014,1740603101801,-500.0,0.00040821,14]
[354655015,1740603101811,-500.0,0.00040821,14]
[354655016,1740603101820,-500.0,0.00040821,14]
[354655017,1740603101830,-500.0,0.00040821,14]
[354655018,1740603101840,-500.0,0.00040821,14]
[354655019,1740603101850,-246.55346506,0.00040821,14]
[354655020,1740603101860,-500.0,0.00040821,14]
[354655021,1740603101869,-500.0,0.00040821,14]
[354655022,1740603101879,-500.0,0.00040821,14]
[354655023,1740603101890,-508.51,0.00040821,14]
[354655024,1740603101900,-1374.31,0.00040821,14]
[354655025,1740603101910,-624.68,0.00040821,14]
[354655026,1740603101921,-532.45,0.00040821,14]
[354655027,1740603101932,-500.0,0.00040821,14]
[354655028,1740603101941,-591.82,0.00040821,14]
[354655029,1740603101950,-602.86,0.00040821,14]
[354655030,1740603101961,-500.0,0.00040821,14]
[354655031,1740603101970,-500.0,0.00040821,14]
[354655032,1740603101979,-500.0,0.00040821,14]
[354655033,1740603101988,-500.0,0.00040821,14]
[354655034,1740603101998,-636.16,0.00040821,14]
[354655035,1740603102007,-500.0,0.00040821,14]
[354655036,1740603102016,-500.0,0.00040821,14]
[354655037,1740603102025,-546.2288623,0.00040821,14]
[354655038,1740603102034,-500.0,0.00040821,14]
[354655039,1740603102044,-500.0,0.00040821,14]
[354655040,1740603102054,-500.0,0.00040821,14]
[354655041,1740603102063,-1491.9,0.00040821,14]
[354655042,1740603102072,-500.0,0.00040821,14]
[354655043,1740603102081,-530.83,0.00040821,14]
[354655044,1740603102090,-500.0,0.00040821,14]
[354655045,1740603102099,-500.0,0.00040821,14]
[354655046,1740603102108,-500.0,0.00040821,14]
[354655047,1740603102117,-500.0,0.00040821,14]
[354655048,1740603102126,-586.16,0.00040821,14]
[354655049,1740603102135,-500.0,0.00040821,14]
[354655050,1740603102143,-500.0,0.00040821,14]
[354655051,1740603102153,-710.17,0.00040821,14]
[354655052,1740603102162,-541.21,0.00040821,14]
[354655053,1740603102171,-526.23,0.00040821,14]
[354655054,1740603102180,-500.0,0.00040821,14]
[354655055,1740603102223,-525.64,0.00040821,14]
[354655056,1740603102233,-500.0,0.00040821,14]
[354655057,1740603102242,-612.53436177,0.00040821,14]
[354655058,1740603102252,-500.0,0.00040821,14]
[354655059,1740603102261,-517.37,0.00040821,14]
[354655060,1740603102269,-500.0,0.00040821,14]
[354655061,1740603102279,-619.2,0.00040821,14]
[354655062,1740603102288,-581.73,0.00040821,14]
[354655063,1740603102297,-517.68,0.00040821,14]
[354655064,1740603102305,-458.7127134,0.00040821,14]
[354655065,1740603102315,-500.0,0.00040821,14]
[354655066,1740603102323,-500.0,0.00040821,14]
[354655067,1740603102333,-663.55,0.00040821,14]
[354655068,1740603102342,-500.0,0.00040821,14]
[354655069,1740603102351,-500.0,0.00040821,14]
[354655070,1740603102359,-596.65,0.00040821,14]
[354655071,1740603102368,-500.0,0.00040821,14]
[354655072,1740603102377,-2255.4,0.00040821,2]
[354655073,1740603102386,-521.67,0.00040821,14]
[354655074,1740603102395,-486.87718704,0.00040821,14]
[354655075,1740603102404,-500.0,0.00040821,14]
[354655076,1740603102414,-150.24251612,0.00040894,14]
[354655077,1740603102422,-500.0,0.00040935,120]
[354655078,1740603102431,-200.0,0.00040957,120]
[354655079,1740603102445,-12063.87597043,0.00041,120]
[354655080,1740603102563,-206.186,0.00036435,2]
[354655081,1740603102572,-141.24692671,0.00036986,14]
[354655082,1740603102583,-268.96307329,0.00036986,14]
[354655083,1740603102593,-1743.56846399,0.00041,120]
[354655084,1740603102612,-166.8135462,0.00014948,2]
[354655085,1740603102622,-500.0,0.00036164,14]
[354655086,1740603102631,-566.85356467,0.00041,120]
[354655087,1740603102642,-1891.75242918,0.00041,120]
[354655088,1740603102655,-556.57499472,0.00041,120]
[354655089,1740603102666,-421.081867,0.00041,120]
[354655090,1740603102678,-3232.61413576,0.00041,120]
[354655091,1740603102687,-373.35629622,0.00041,120]
[354655092,1740603102697,-206.978381,0.00041,14]
[354655093,1740603102706,-499.0,0.00041,14]
[354655094,1740603102716,-500.0,0.00041001,120]
[354655095,1740603102726,-825.24122944,0.00041014,30]
[354655096,1740603102735,-500.0,0.00041095,14]
[354655097,1740603102745,-500.0,0.00041095,14]
[354655098,1740603102754,-317.17905609,0.00041095,14]
[354655099,1740603102764,-445.58610227,0.00041095,14]
[354655101,1740603526972,-450.0,0.00016499,2]
[354655102,1740603526996,-216.667949,0.00022733,2]
[354655103,1740603527019,-500.0,0.00024932,2]
[354655104,1740603527041,-216.667949,0.00029124,2]
[354655105,1740603527062,-159.7,0.00032,30]
[354655106,1740603527086,-501.964102,0.00034834,120]
[354655516,1740603707036,-250.0,0.0002257,2]
[354655518,1740603707059,-150.0,0.00024827,2]
[354655519,1740603707083,-250.0,0.00026849,2]
[354655929,1740604134480,-250.0,0.00021,2]
[354655930,1740604134503,-300.0,0.00023,2]
[354656331,1740604232316,-500.0,0.00024932,2]
[354656332,1740604232326,-350.0,0.00025,2]
[354656333,1740604232335,-1000.0,0.00026174,2]
[354656334,1740604232345,-6.79,0.00026849,2]
[354656335,1740604232355,-800.0,0.00026986,120]
[354656336,1740604232364,-467.00914716,0.00026986,30]
[354656337,1740604232374,-400.0,0.00027,2]
[354656338,1740604232383,-944.83951589,0.00027195,2]
[354656339,1740604232430,-55.16048411,0.00027195,2]
[354656340,1740604232440,-244.83951589,0.00029,2]
[354656341,1740604232519,-205.16048411,0.00029,2]
[354656342,1740604232529,-500.0,0.00031,2]
[354656343,1740604232538,-256.79,0.00032646,2]
[354656344,1740604232548,-587.26,0.00032794,2]
[354656345,1740604232557,-3172.34051589,0.00033943,2]
[354656346,1740604232569,-153.82948411,0.00033943,2]
[354656347,1740604232579,-154.59685284,0.00033969,2]
[354656375,1740604238189,-31.53314716,0.00033969,2]
[354656376,1740604238199,-250.0,0.0003398,2]
[354656377,1740604238208,-1143.06,0.00033981,120]
[354656378,1740604238217,-6469.11,0.00033995,2]
[354656379,1740604238226,-579.59685284,0.00034128,2]
[354656380,1740604238248,-420.40314716,0.00034128,2]
[354656381,1740604238258,-1352.0,0.000343,3]
[354656382,1740604238267,-677.53,0.00034421,2]
[354656383,1740604238276,-150.0,0.00034448,7]
[354656384,1740604238286,-294.8945,0.00034524,2]
[354656385,1740604238295,-1000.0,0.00034591,2]
[354656386,1740604238304,-5583.47288009,0.00034624,2]
[354656387,1740604238320,-426.43352648,0.00034624,2]
[354656388,1740604238334,-16914.33228644,0.00034624,2]
[354656389,1740604238429,-975.76130699,0.00034624,2]
[354656390,1740604238439,-500.0,0.0003463,2]
[354656391,1740604238448,-249.85,0.00034683,2]
[354656392,1740604238458,-107.695898,0.00034834,120]
[354656393,1740604238468,-868.87903926,0.000349,5]
[354656394,1740604238477,-241.77498998,0.000349,7]
[354656395,1740604238487,-246.09,0.00034922,2]
[354656396,1740604238496,-1150.0,0.00034944,2]
[354656397,1740604238505,-120.5024546,0.00034944,2]
[354656398,1740604238516,-79.4975454,0.00034944,2]
[354656399,1740604238526,-150.05,0.00034965,2]
[354656400,1740604238536,-903.82,0.0003502,120]
[354656401,1740604238545,-587.26,0.00035057,2]
[354656402,1740604238555,-216.92,0.00035099,120]
[354656403,1740604238734,-2770.6192546,0.000353,5]
[354656524,1740604240335,-1890.48933053,0.000353,5]
[354656525,1740604240347,-819.05324682,0.000353,5]
[354656526,1740604240358,-69.83816805,0.000353,5]
[354656528,1740604240368,-182.27357034,0.00035315,41]
[354656530,1740604240380,-1989.69442966,0.00035315,41]
[354656532,1740604240389,-155.944,0.00035315,41]
[354656534,1740604240398,-1199.12862034,0.00035516,2]
[354656536,1740604240410,-365.83877966,0.00035516,2]
[354656539,1740604240424,-3044.90279876,0.00035516,2]
[354656548,1740604240508,-21137.49999999,0.00035516,2]
[354656550,1740604240520,-6886.88290125,0.00035516,2]
[354656553,1740604240530,-500.0,0.00035616,14]
[354656555,1740604240540,-300.21751577,0.00035616,14]
[354656557,1740604240550,-500.0,0.00035616,14]
[354656559,1740604240560,-500.0,0.00035616,14]
[354656561,1740604240569,-500.0,0.00035616,14]
[354656563,1740604240581,-500.0,0.00035616,14]
[354656565,1740604240591,-500.0,0.00035616,14]
[354656567,1740604240600,-500.0,0.00035616,14]
[354656569,1740604240611,-184.33341152,0.00035616,14]
[354656571,1740604240621,-500.0,0.00035616,14]
[354656573,1740604240631,-500.0,0.00035616,14]
[354656575,1740604240641,-500.0,0.00035616,14]
[354656577,1740604240651,-500.0,0.00035616,14]
[354656579,1740604240661,-500.0,0.00035616,14]
[354656582,1740604240671,-475.45231134,0.00035616,14]
[354656584,1740604240682,-273.28129467,0.00035616,14]
[354656586,1740604240692,-500.0,0.00035616,14]
[354656588,1740604240701,-500.0,0.00035616,14]
[354656590,1740604240711,-207.95538821,0.00035616,14]
[354656592,1740604240721,-500.0,0.00035616,14]
[354656594,1740604240730,-298.56167226,0.00035616,14]
[354656596,1740604240740,-500.0,0.00035616,14]
[354656598,1740604240749,-500.0,0.00035616,14]
[354656600,1740604240759,-500.0,0.00035616,14]
[354656602,1740604240769,-500.0,0.00035616,14]
[354656604,1740604240778,-300.1087851,0.00035616,14]
[354656606,1740604240788,-500.0,0.00035616,14]
[354656608,1740604240798,-500.0,0.00035616,14]
[354656610,1740604240808,-500.0,0.00035616,14]
[354656612,1740604240818,-500.0,0.00035616,14]
[354656614,1740604240828,-500.0,0.00035616,14]
[354656616,1740604240840,-252.19799472,0.00035616,14]
[354656618,1740604240855,-247.80200528,0.00035616,14]
[354656620,1740604240865,-500.0,0.00035616,14]
[354656622,1740604240875,-500.0,0.00035616,14]
[354656625,1740604240887,-647.42786625,0.00035616,14]
[354656627,1740604240898,-500.0,0.00035616,14]
[354656629,1740604240907,-500.0,0.00035616,14]
[354656631,1740604240918,-487.89012847,0.00035629,2]
[354656886,1740604243362,-184.0,0.000353,5]
[354656888,1740604243372,-667.25873322,0.00035629,2]
[354656890,1740604243385,-382.03977169,0.00035629,2]
[354656892,1740604243396,-2500.0,0.00035864,2]
[354656894,1740604243406,-500.0,0.0003589,14]
[354656896,1740604243416,-500.0,0.0003589,14]
[354656898,1740604243427,-193.54658888,0.0003589,14]
[354656900,1740604243438,-500.0,0.0003589,14]
[354656903,1740604243448,-500.0,0.0003589,14]
[354656905,1740604243459,-500.0,0.0003589,14]
[354656907,1740604243470,-98.22914727,0.0003589,14]
[354656909,1740604243483,-401.77085273,0.0003589,14]
[354656911,1740604243494,-500.0,0.0003589,14]
[354656913,1740604243506,-500.0,0.0003589,14]
[354656915,1740604243521,-500.0,0.0003589,14]
[354656917,1740604243532,-500.0,0.0003589,14]
[354656919,1740604243542,-500.0,0.0003589,14]
[354656921,1740604243553,-500.0,0.0003589,14]
[354656923,1740604243563,-500.0,0.0003589,14]
[354656925,1740604243573,-500.0,0.0003589,14]
[354656927,1740604243590,-500.0,0.0003589,14]
[354656929,1740604243601,-177.18225326,0.0003589,14]
[354656931,1740604243615,-500.0,0.0003589,14]
[354656933,1740604243625,-500.0,0.0003589,14]
[354656935,1740604243636,-534.89,0.0003589,14]
[354656937,1740604243647,-500.0,0.0003589,14]
[354656939,1740604243658,-241.77498981,0.000359,7]
[354656940,1740604243669,-4677.82,0.00035954,2]
[354656941,1740604243680,-500.0,0.00035963,14]
[354656942,1740604243691,-516.39,0.00035963,14]
[354656943,1740604243701,-500.0,0.00035963,14]
[354656944,1740604243711,-500.0,0.00035963,14]
[354656945,1740604243721,-500.0,0.00035963,14]
[354656946,1740604243731,-500.0,0.00035963,14]
[354656948,1740604243742,-500.0,0.00035963,14]
[354656950,1740604243752,-500.0,0.00035963,14]
[354656952,1740604243761,-500.0,0.00035963,14]
[354656954,1740604243771,-500.0,0.00035963,14]
[354656956,1740604243782,-500.0,0.00035963,14]
[354656958,1740604243793,-500.0,0.00035963,14]
[354656960,1740604243802,-500.0,0.00035963,14]
[354656962,1740604243812,-500.0,0.00035963,14]
[354656964,1740604243822,-500.0,0.00035963,14]
[354656966,1740604243835,-500.0,0.00035963,14]
[354656968,1740604243845,-500.0,0.00035963,14]
[354656970,1740604243860,-500.0,0.00035963,14]
[354656973,1740604243870,-500.0,0.00035963,14]
[354656976,1740604243881,-500.0,0.00035963,14]
[354656979,1740604243892,-500.0,0.00035963,7]
[354656982,1740604243902,-595.25590955,0.00035963,14]
[354656985,1740604243911,-500.0,0.00035963,14]
[354656988,1740604243923,-500.0,0.00035963,14]
[354656991,1740604243933,-500.0,0.00035963,14]
[354656994,1740604243943,-500.0,0.00035963,14]
[354656997,1740604243953,-519.39,0.00035963,14]
[354656999,1740604243963,-500.0,0.00035963,14]
[354657001,1740604243972,-500.0,0.00035963,2]
[354657003,1740604243982,-500.0,0.00035963,14]
[354657005,1740604243992,-500.0,0.00035963,14]
[354657007,1740604244002,-500.0,0.00035963,14]
[354657009,1740604244011,-500.0,0.00035963,14]
[354657011,1740604244021,-500.0,0.00035963,14]
[354657013,1740604244030,-41.05800219,0.00035963,14]
[354657274,1740604246638,-458.94199781,0.00035963,14]
[354657276,1740604246647,-500.0,0.00035963,14]
[354657277,1740604246656,-500.0,0.00035963,14]
[354657278,1740604246665,-500.0,0.00035963,14]
[354657279,1740604246675,-500.0,0.00035963,14]
[354657280,1740604246683,-500.0,0.00035963,14]